fUST/lending_fUST_20240830
["ID","MTS","AMOUNT","RATE_DAILY","PERIOD"]
[336683068,1725013720705,7490.24185791,0.0002,2]
[336683069,1725013720735,23308.33281175,0.0002,2]
[336683070,1725013720760,10814.03512354,0.0002,2]
[336683071,1725013720822,1971.57827829,0.00019452,2]
[336683125,1725013832066,-3000.0,0.00024028,2]
[336683126,1725013832076,-932.04667786,0.00024476,2]
[336683127,1725013832092,-23967.95332214,0.00024476,2]
[336683128,1725013832104,-907.00479806,0.00024875,10]
[336683129,1725013832114,-308.60598881,0.000249,2]
[336683130,1725013832124,-300.0,0.00024999,2]
[336683131,1725013832133,-300.0,0.00024999,2]
[336683132,1725013832142,-84898.94645096,0.00025,2]
[336683133,1725013832152,-10151.30636837,0.00025,2]
[336683134,1725013832162,-251.28877007,0.00025124,12]
[336683135,1725013832173,-420.0,0.00027082,2]
[336683136,1725013832184,-420.0,0.00027499,2]
[336683137,1725013832194,-288.0135894,0.0002892,2]
[336683138,1725013832205,-250.0,0.00029037,2]
[336683139,1725013832217,-250.0,0.00029116,2]
[336683140,1725013832227,-250.0,0.00029196,2]
[336683141,1725013832236,-250.0,0.00029275,2]
[336683142,1725013832246,-250.0,0.00029355,2]
[336683143,1725013832256,-250.0,0.00029435,2]
[336683144,1725013832266,-250.0,0.00029514,2]
[336683145,1725013832276,-500.0,0.00029588,2]
[336683146,1725013832286,-250.0,0.00029594,2]
[336683147,1725013832295,-150.112233,0.000296,9]
[336683148,1725013832304,-250.0,0.00029674,2]
[336683149,1725013832315,-250.0,0.00029753,2]
[336683150,1725013832325,-250.0,0.00029833,2]
[336683151,1725013832336,-250.0,0.00029913,2]
[336683152,1725013832345,-250.0,0.00029992,2]
[336683153,1725013832354,-898.34782203,0.0003,2]
[336683154,1725013832364,-250.0,0.00030072,2]
[336683155,1725013832373,-250.0,0.00030152,2]
[336683156,1725013832382,-250.0,0.00030231,2]
[336683157,1725013832391,-587.0,0.00030249,2]
[336683158,1725013832403,-250.0,0.00030311,2]
[336683159,1725013832412,-250.0,0.00030391,2]
[336683160,1725013832421,-150.112233,0.000304,5]
[336683161,1725013832430,-250.0,0.0003047,2]
[336683162,1725013832439,-250.0,0.0003055,2]
[336683163,1725013832449,-330.49259433,0.00030972,2]
[336683164,1725013832458,-15671.95352856,0.000313,2]
[336683165,1725013832467,-150.112233,0.000313,8]
[336683166,1725013832478,-3837.95029289,0.00031803,2]
[336683167,1725013832488,-1709.7613524,0.00031803,2]
[336683168,1725013832498,-160.10755993,0.00031873,5]
[336683169,1725013832509,-448.74911353,0.00031902,5]
[336683170,1725013832518,-857.84326115,0.00031902,5]
[336683171,1725013832527,-150.0,0.00031903,14]
[336683172,1725013832539,-150.0,0.00031903,14]
[336683173,1725013832550,-200.0,0.00031903,14]
[336683174,1725013832560,-49500.0,0.00031903,36]
[336683175,1725013832570,-58783.14312817,0.00031903,7]
[336683176,1725013832580,-86302.59164337,0.00031903,2]
[336683177,1725013832591,-17374.75498772,0.00031903,30]
[336683178,1725013832601,-300.0,0.00031903,2]
[336683179,1725013832612,-790.6446827,0.00031903,2]
[336683180,1725013832622,-11250.36656043,0.00031903,32]
[336683181,1725013832631,-298.12586929,0.00031903,2]
[336683182,1725013832640,-23099.5039494,0.00031903,120]
[336683183,1725013832650,-191209.95360526,0.00031903,5]
[336683184,1725013832660,-77121.7696827,0.00031903,2]
[336683185,1725013832669,-3733.04259495,0.00031903,2]
[336683186,1725013832678,-2940.66928994,0.00031903,7]
[336683187,1725013832688,-501.38290317,0.00031903,14]
[336683188,1725013832698,-11919.5981591,0.00031903,4]
[336683189,1725013832707,-500.0,0.00032,120]
[336683190,1725013832718,-150.112233,0.000321,6]
[336683191,1725013832727,-471.17109386,0.00033,120]
[336683192,1725013832736,-150.112233,0.00033,10]
[336683193,1725013832749,-500.0,0.00033256,7]
[336683194,1725013832758,-418.0,0.00033274,2]
[336683195,1725013832767,-3837.95029286,0.00033381,2]
[336683196,1725013832777,-229.30508024,0.00033763,7]
[336683197,1725013832787,-500.0,0.00033763,7]
[336683198,1725013832797,-500.0,0.00033763,7]
[336683199,1725013832806,-374.39508514,0.00033763,7]
[336683200,1725013832816,-500.0,0.00033763,7]
[336683201,1725013832825,-500.0,0.00033763,7]
[336683202,1725013832845,-500.0,0.00033763,7]
[336683203,1725013832856,-500.0,0.00033763,7]
[336683204,1725013832869,-500.0,0.00033763,7]
[336683205,1725013832878,-458.86200744,0.00033763,7]
[336683206,1725013832887,-500.0,0.00033763,7]
[336683207,1725013832897,-500.0,0.00033763,7]
[336683208,1725013832908,-500.0,0.00033763,7]
[336683209,1725013832918,-500.0,0.00033763,7]
[336683210,1725013832927,-500.0,0.00033763,7]
[336683211,1725013832937,-500.0,0.00033763,7]
[336683212,1725013832948,-500.0,0.00033763,7]
[336683213,1725013832958,-500.0,0.00033763,7]
[336683214,1725013832967,-500.0,0.00033763,7]
[336683215,1725013832977,-500.0,0.00033763,7]
[336683216,1725013832987,-550.0,0.00033763,7]
[336683217,1725013832996,-150.112233,0.000339,5]
[336683218,1725013833006,-527.86181787,0.00034,5]
[336683219,1725013833016,-500.0,0.00034,120]
[336683220,1725013833025,-150.112233,0.000347,9]
[336683221,1725013833043,-1292.33404097,0.00034728,12]
[336683222,1725013833052,-27500.64184527,0.000349,2]
[336683223,1725013833062,-19066.3853493,0.000349,2]
[336683224,1725013833071,-151.0,0.000349,7]
[336683225,1725013833080,-186.406228,0.000349,7]
[336683226,1725013833090,-151.214117,0.000349,2]
[336683227,1725013833100,-1430.484233,0.000349,7]
[336683228,1725013833110,-3837.95029286,0.0003496,2]
[336683229,1725013833120,-500.0,0.00034973,4]
[336683230,1725013833130,-528.76901252,0.00034973,5]
[336683231,1725013833140,-85806.6484556,0.00034989,4]
[336683232,1725013833150,-49145.51398678,0.00034999,3]
[336683233,1725013833164,-259.50009799,0.00034999,3]
[336683247,1725013838321,-308.60598879,0.00028352,2]
[336683248,1725013838331,-1292.95750264,0.00032,14]
[336683249,1725013838343,-257.09249736,0.00032,14]
[336683250,1725013838353,-1430.484233,0.000349,7]
[336683251,1725013838362,-9790.35527507,0.00034999,3]
[336683252,1725013838374,-818.75508754,0.00034999,3]
[336683253,1725013838386,-1423.9116153,0.00034999,3]
[336683254,1725013838396,-151.0,0.00034999,7]
[336683255,1725013838406,-1312.92553593,0.00034999,7]
[336683256,1725013838430,-117.55869707,0.00034999,7]
[336683257,1725013838439,-1430.484233,0.00034999,7]
[336683258,1725013838449,-150.112233,0.000356,10]
[336683259,1725013838459,-400.0,0.00035616,60]
[336683260,1725013838469,-163.107127,0.00035616,120]
[336683261,1725013838478,-1550.05,0.000357,14]
[336683262,1725013838488,-500.0,0.00036,120]
[336683263,1725013838497,-715.03999874,0.00036246,7]
[336683264,1725013838507,-150.112233,0.000364,5]
[336683265,1725013838516,-3837.95029286,0.00036538,2]
[336683266,1725013838525,-900.0,0.00036808,7]
[336683267,1725013838536,-896.23265929,0.00037042,7]
[336683268,1725013838545,-150.112233,0.000373,7]
[336683269,1725013838555,-5336.69807843,0.00037923,2]
[336683270,1725013838565,-500.0,0.00038,120]
[336683271,1725013838574,-150.0,0.00038079,2]
[336683272,1725013838584,-3837.95029286,0.00038116,2]
[336683273,1725013838593,-20646.8,0.00038126,3]
[336683274,1725013838602,-153.0,0.0003813,2]
[336683275,1725013838612,-153.0,0.0003813,2]
[336683276,1725013838621,-153.0,0.0003813,2]
[336683277,1725013838630,-153.0,0.0003813,2]
[336683278,1725013838640,-818.7476971,0.0003813,2]
[336683279,1725013838650,-438.068132,0.0003813,2]
[336683280,1725013838660,-61514.46070345,0.00038136,5]
[336683281,1725013838674,-27010.12297031,0.00038136,5]
[336683282,1725013838691,-363.41632624,0.00038136,5]
[336683283,1725013838700,-85806.6484556,0.00038185,4]
[336683284,1725013838710,-150.112233,0.000382,8]
[336683285,1725013838720,-150.112233,0.000382,10]
[336683286,1725013838730,-150.112233,0.000382,6]
[336683287,1725013838740,-151.0,0.00038205,7]
[336683288,1725013838749,-1430.484233,0.00038205,7]
[336683289,1725013838759,-1430.484233,0.00038205,7]
[336683290,1725013838768,-85806.6484556,0.00038205,4]
[336683291,1725013838778,-171613.296911,0.00038215,4]
[336683292,1725013838788,-151.0,0.00038216,7]
[336683293,1725013838797,-1430.484233,0.00038216,7]
[336683294,1725013838806,-1430.484233,0.00038216,7]
[336683295,1725013838816,-435.0771508,0.00038273,5]
[336683296,1725013838825,-150.112233,0.000383,10]
[336683297,1725013838835,-150.112233,0.000383,5]
[336683298,1725013838848,-150.112233,0.000383,8]
[336683299,1725013838858,-150.112233,0.000383,6]
[336683300,1725013838872,-150.112233,0.000383,6]
[336683301,1725013838882,-150.112233,0.000383,8]
[336683302,1725013838892,-150.112233,0.000383,5]
[336683303,1725013838902,-150.112233,0.000383,5]
[336683304,1725013838912,-150.112233,0.000383,10]
[336683305,1725013838921,-150.112233,0.000383,5]
[336683306,1725013838931,-150.112233,0.000383,8]
[336683307,1725013838942,-160.0,0.00038345,10]
[336683308,1725013838955,-230.345981,0.00038346,7]
[336683309,1725013838964,-151.0,0.00038346,7]
[336683310,1725013838974,-151.0,0.00038346,7]
[336683311,1725013838984,-287.151314,0.00038346,7]
[336683312,1725013838993,-287.151314,0.00038346,7]
[336683313,1725013839002,-655.714819,0.00038346,7]
[336683314,1725013839012,-655.714819,0.00038346,7]
[336683315,1725013839021,-266.47747,0.00038346,7]
[336683316,1725013839031,-266.47747,0.00038346,7]
[336683317,1725013839042,-175.835319,0.00038346,7]
[336683318,1725013839052,-175.835319,0.00038346,7]
[336683319,1725013839061,-1540.307411,0.00038346,7]
[336683320,1725013839071,-1540.307411,0.00038346,7]
[336683321,1725013839080,-959.385617,0.00038346,7]
[336683322,1725013839089,-959.385617,0.00038346,7]
[336683323,1725013839100,-417.14091,0.00038346,7]
[336683324,1725013839109,-354.346241,0.00038346,7]
[336683325,1725013839119,-166.745326,0.00038346,7]
[336683326,1725013839128,-417.14091,0.00038346,7]
[336683327,1725013839138,-166.745326,0.00038346,7]
[336683328,1725013839147,-354.346241,0.00038346,7]
[336683329,1725013839157,-271.72460976,0.00038346,2]
[336683330,1725013839166,-372.93180279,0.00038356,120]
[336683331,1725013839176,-301.82720385,0.00038356,120]
[336683332,1725013839185,-500.0,0.00038356,120]
[336683333,1725013839194,-502.6677539,0.00038356,30]
[336683334,1725013839204,-502.23709377,0.00038356,120]
[336683335,1725013839213,-500.0,0.00038356,120]
[336683336,1725013839223,-209.47127129,0.00038356,120]
[336683337,1725013839233,-502.2796137,0.00038356,120]
[336683338,1725013839243,-500.0,0.00038356,120]
[336683339,1725013839252,-500.0,0.00038356,120]
[336683340,1725013839262,-500.0,0.00038356,120]
[336683341,1725013839272,-500.0,0.00038356,120]
[336683342,1725013839282,-500.0,0.00038356,120]
[336683343,1725013839293,-500.0,0.00038356,120]
[336683344,1725013839307,-500.0,0.00038356,120]
[336683345,1725013839316,-501.59538685,0.00038356,120]
[336683346,1725013839326,-500.0,0.00038356,120]
[336683347,1725013839336,-626.58753105,0.00038356,120]
[336683348,1725013839346,-500.0,0.00038356,120]
[336683349,1725013839355,-493.02230178,0.00038356,120]
[336683350,1725013839365,-500.0,0.00038356,120]
[336683351,1725013839375,-500.0,0.00038356,120]
[336683352,1725013839384,-500.0,0.00038356,120]
[336683353,1725013839394,-500.0,0.00038356,120]
[336683354,1725013839406,-500.0,0.00038356,120]
[336683355,1725013839416,-500.0,0.00038356,120]
[336683356,1725013839426,-500.0,0.00038356,120]
[336683357,1725013839436,-500.0,0.00038356,120]
[336683358,1725013839445,-500.0,0.00038356,120]
[336683359,1725013839455,-500.0,0.00038356,120]
[336683360,1725013839577,-500.0,0.00038356,120]
[336683361,1725013839588,-770.45,0.00038356,120]
[336683362,1725013839598,-500.0,0.00038356,120]
[336683363,1725013839607,-500.0,0.00038356,120]
[336683364,1725013839617,-500.0,0.00038356,120]
[336683365,1725013839627,-415.8466877,0.00038356,120]
[336683366,1725013839636,-500.0,0.00038356,120]
[336683367,1725013839646,-500.0,0.00038356,120]
[336683368,1725013839656,-500.0,0.00038356,120]
[336683369,1725013839666,-501.54345102,0.00038356,120]
[336683370,1725013839675,-502.62228021,0.00038356,120]
[336683371,1725013839685,-368.10877107,0.00038356,120]
[336683372,1725013839694,-500.0,0.00038356,120]
[336683373,1725013839705,-500.0,0.00038356,120]
[336683374,1725013839715,-500.0,0.00038356,120]
[336683375,1725013839724,-500.0,0.00038356,2]
[336683376,1725013839734,-501.31606788,0.00038356,120]
[336683377,1725013839744,-500.0,0.00038356,120]
[336683378,1725013839753,-500.0,0.00038356,120]
[336683380,1725013839763,-500.0,0.00038356,120]
[336683381,1725013839772,-500.0,0.00038356,120]
[336683382,1725013839782,-500.0,0.00038356,120]
[336683383,1725013839792,-307.80862229,0.00038356,120]
[336683384,1725013839801,-500.0,0.00038356,120]
[336683386,1725013839811,-500.0,0.00038356,120]
[336683387,1725013839820,-504.9737604,0.00038356,120]
[336683388,1725013839829,-503.5435259,0.00038356,120]
[336683389,1725013839839,-500.0,0.00038356,120]
[336683390,1725013839849,-500.0,0.00038356,120]
[336683391,1725013839858,-503.30364692,0.00038356,120]
[336683392,1725013839871,-503.85304149,0.00038356,120]
[336683393,1725013839882,-500.0,0.00038356,120]
[336683394,1725013839891,-500.0,0.00038356,120]
[336683395,1725013839900,-151.0,0.00038356,7]
[336683396,1725013839911,-517.13966426,0.00038356,120]
[336683397,1725013839920,-151.0,0.00038356,7]
[336683398,1725013839930,-500.0,0.00038356,120]
[336683399,1725013839940,-500.0,0.00038356,120]
[336683401,1725013839950,-151.0,0.00038356,7]
[336683403,1725013839959,-500.0,0.00038356,120]
[336683404,1725013839969,-500.0,0.00038356,120]
[336683406,1725013839978,-500.0,0.00038356,120]
[336683408,1725013839987,-229.18757758,0.00038356,120]
[336683411,1725013840013,-270.81242242,0.00038356,120]
[336683413,1725013840022,-154.506119,0.00038356,7]
[336683415,1725013840032,-583.23115109,0.00038356,120]
[336683416,1725013840041,-635.3,0.00038356,120]
[336683417,1725013840050,-154.506119,0.00038356,7]
[336683418,1725013840059,-500.0,0.00038356,120]
[336683419,1725013840068,-151.0,0.00038356,7]
[336683420,1725013840077,-500.0,0.00038356,120]
[336683421,1725013840087,-500.0,0.00038356,120]
[336683422,1725013840097,-500.0,0.00038356,120]
[336683423,1725013840107,-275.298426,0.00038356,7]
[336683425,1725013840117,-345.00390519,0.00038356,120]
[336683428,1725013840277,-160.51355617,0.00031902,2]
[336683429,1725013840287,-150.0,0.00035518,2]
[336683430,1725013840298,-154.99609481,0.00038356,120]
[336683431,1725013840308,-500.0,0.00038356,120]
[336683432,1725013840318,-502.07034725,0.00038356,120]
[336683433,1725013840327,-502.56152815,0.00038356,120]
[336683434,1725013840337,-275.298426,0.00038356,7]
[336683435,1725013840346,-500.0,0.00038356,120]
[336683436,1725013840357,-517.66271411,0.00038356,120]
[336683437,1725013840366,-500.0,0.00038356,120]
[336683438,1725013840376,-500.0,0.00038356,120]
[336683439,1725013840386,-500.0,0.00038356,120]
[336683440,1725013840395,-167.873463,0.00038356,7]
[336683441,1725013840405,-505.36543845,0.00038356,120]
[336683442,1725013840415,-165.86678323,0.00038356,120]
[336683443,1725013840424,-500.0,0.00038356,120]
[336683444,1725013840434,-167.873463,0.00038356,7]
[336683445,1725013840443,-521.03313257,0.00038356,120]
[336683446,1725013840453,-151.0,0.00038356,7]
[336683447,1725013840463,-500.0,0.00038356,120]
[336683448,1725013840472,-500.0,0.00038356,120]
[336683449,1725013840482,-500.0,0.00038356,120]
[336683450,1725013840491,-151.0,0.00038356,7]
[336683451,1725013840501,-500.0,0.00038356,120]
[336683452,1725013840511,-279.673042,0.00038356,7]
[336683453,1725013840521,-500.0,0.00038356,120]
[336683454,1725013840531,-500.0,0.00038356,120]
[336683455,1725013840541,-279.673042,0.00038356,7]
[336683456,1725013840551,-500.0,0.00038356,120]
[336683457,1725013840563,-500.0,0.00038356,120]
[336683458,1725013840573,-500.0,0.00038356,120]
[336683459,1725013840584,-500.0,0.00038356,120]
[336683460,1725013840595,-500.0,0.00038356,120]
[336683461,1725013840605,-502.6954051,0.00038356,120]
[336683462,1725013840616,-500.0,0.00038356,120]
[336683463,1725013840625,-500.0,0.00038356,120]
[336683464,1725013840635,-500.0,0.00038356,120]
[336683465,1725013840644,-500.0,0.00038356,120]
[336683466,1725013840653,-500.0,0.00038356,120]
[336683467,1725013840663,-500.0,0.00038356,120]
[336683468,1725013840672,-500.0,0.00038356,120]
[336683469,1725013840682,-500.0,0.00038356,120]
[336683470,1725013840691,-500.0,0.00038356,120]
[336683471,1725013840701,-500.0,0.00038356,120]
[336683472,1725013840710,-500.0,0.00038356,120]
[336683473,1725013840719,-151.0,0.00038356,7]
[336683474,1725013840728,-501.85437594,0.00038356,120]
[336683475,1725013840737,-500.0,0.00038356,120]
[336683476,1725013840747,-500.0,0.00038356,120]
[336683477,1725013840757,-500.0,0.00038356,120]
[336683478,1725013840766,-500.0,0.00038356,120]
[336683479,1725013840775,-500.0,0.00038356,120]
[336683480,1725013840785,-500.0,0.00038356,120]
[336683481,1725013840794,-500.0,0.00038356,120]
[336683482,1725013840804,-312.87976637,0.00038356,120]
[336683483,1725013840814,-151.0,0.00038356,7]
[336683484,1725013840824,-500.0,0.00038356,120]
[336683485,1725013840833,-500.0,0.00038356,120]
[336683486,1725013840842,-151.0,0.00038356,7]
[336683487,1725013840851,-500.0,0.00038356,120]
[336683488,1725013840860,-153.79285,0.00038356,7]
[336683489,1725013840873,-500.0,0.00038356,120]
[336683490,1725013840882,-500.0,0.00038356,120]
[336683491,1725013840891,-313.62364111,0.00038356,120]
[336683501,1725013843175,-308.60598879,0.00031803,2]
[336683502,1725013843184,-612.0765596,0.00031902,2]
[336683503,1725013843194,-500.0,0.00031902,2]
[336683504,1725013843203,-500.0,0.00031902,2]
[336683505,1725013843213,-256.20340521,0.00031902,2]
[336683506,1725013843222,-500.0,0.00031902,2]
[336683507,1725013843232,-500.0,0.00031902,2]
[336683508,1725013843242,-500.0,0.00031902,2]
[336683509,1725013843251,-500.0,0.00031902,2]
[336683510,1725013843261,-500.0,0.00031902,2]
[336683511,1725013843271,-186.37635889,0.00038356,120]
[336683512,1725013843281,-500.0,0.00038356,120]
[336683513,1725013843291,-153.79285,0.00038356,7]
[336683514,1725013843300,-500.0,0.00038356,120]
[336683516,1725013843309,-507.15686945,0.00038356,120]
[336683518,1725013843318,-480.22597401,0.00038356,120]
[336683532,1725013846179,-19.77402599,0.00038356,120]
[336683533,1725013846195,-245.58417397,0.00038356,120]
[336683534,1725013846214,-254.41582603,0.00038356,120]
[336683536,1725013846226,-24.90724315,0.00038356,120]
[336683537,1725013846240,-478.1547465,0.00038356,120]
[336683538,1725013846251,-500.0,0.00038356,120]
[336683539,1725013846265,-500.0,0.00038356,120]
[336683540,1725013846279,-500.0,0.00038356,120]
[336683541,1725013846292,-502.71099681,0.00038356,120]
[336683542,1725013846306,-502.36668592,0.00038356,120]
[336683543,1725013846319,-500.0,0.00038356,120]
[336683544,1725013846331,-500.0,0.00038356,120]
[336683545,1725013846342,-500.0,0.00038356,120]
[336683546,1725013846353,-500.0,0.00038356,120]
[336683547,1725013846366,-283.48683,0.00038356,7]
[336683549,1725013846378,-500.0,0.00038356,120]
[336683550,1725013846390,-500.0,0.00038356,120]
[336683551,1725013846402,-283.48683,0.00038356,7]
[336683552,1725013846415,-500.0,0.00038356,120]
[336683553,1725013846427,-500.0,0.00038356,120]
[336683554,1725013846439,-500.0,0.00038356,120]
[336683555,1725013846450,-500.0,0.00038356,120]
[336683556,1725013846462,-500.0,0.00038356,120]
[336683557,1725013846474,-500.0,0.00038356,120]
[336683558,1725013846486,-503.89844926,0.00038356,120]
[336683559,1725013846497,-500.0,0.00038356,120]
[336683560,1725013846509,-500.0,0.00038356,120]
[336683561,1725013846520,-500.0,0.00038356,120]
[336683562,1725013846532,-527.10895967,0.00038356,120]
[336683563,1725013846545,-500.0,0.00038356,120]
[336683564,1725013846557,-500.0,0.00038356,120]
[336683565,1725013846568,-500.0,0.00038356,120]
[336683566,1725013846579,-500.0,0.00038356,120]
[336683567,1725013846591,-500.0,0.00038356,120]
[336683568,1725013846606,-500.0,0.00038356,120]
[336683569,1725013846618,-500.0,0.00038356,120]
[336683570,1725013846630,-500.0,0.00038356,120]
[336683571,1725013846642,-500.0,0.00038356,120]
[336683572,1725013846654,-500.0,0.00038356,120]
[336683573,1725013846666,-151.0,0.00038356,7]
[336683574,1725013846678,-151.0,0.00038356,7]
[336683575,1725013846690,-506.54108213,0.00038356,120]
[336683576,1725013846701,-500.0,0.00038356,120]
[336683577,1725013846713,-500.0,0.00038356,120]
[336683578,1725013846726,-500.0,0.00038356,120]
[336683579,1725013846735,-500.0,0.00038356,120]
[336683580,1725013846744,-500.0,0.00038356,120]
[336683581,1725013846754,-500.0,0.00038356,120]
[336683582,1725013846763,-181.28592646,0.00038356,120]
[336683583,1725013846773,-500.0,0.00038356,120]
[336683584,1725013846782,-500.0,0.00038356,120]
[336683585,1725013846792,-259.96,0.00038356,120]
[336683586,1725013846801,-335.64522089,0.00038356,120]
[336683587,1725013846810,-500.0,0.00038356,120]
[336683588,1725013846819,-502.93001643,0.00038356,120]
[336683589,1725013846828,-183.814188,0.00038356,7]
[336683590,1725013846974,-183.814188,0.00038356,7]
[336683591,1725013846985,-325.61953424,0.00038356,120]
[336683592,1725013846995,-500.0,0.00038356,120]
[336683593,1725013847004,-183.814188,0.00038356,7]
[336683594,1725013847013,-183.814188,0.00038356,7]
[336683595,1725013847022,-500.0,0.00038356,120]
[336683596,1725013847031,-500.0,0.00038356,120]
[336683597,1725013847041,-500.0,0.00038356,120]
[336683598,1725013847050,-502.38028933,0.00038356,120]
[336683599,1725013847059,-501.90842142,0.00038356,120]
[336683600,1725013847069,-511.12900496,0.00038356,120]
[336683601,1725013847079,-500.0,0.00038356,120]
[336683602,1725013847090,-500.0,0.00038356,120]
[336683603,1725013847100,-599.992075,0.00038356,120]
[336683604,1725013847110,-500.0,0.00038356,120]
[336683605,1725013847120,-500.0,0.00038356,120]
[336683606,1725013847129,-500.0,0.00038356,120]
[336683607,1725013847138,-500.0,0.00038356,120]
[336683608,1725013847147,-500.0,0.00038356,120]
[336683609,1725013847156,-500.0,0.00038356,120]
[336683610,1725013847166,-500.0,0.00038356,120]
[336683611,1725013847176,-503.44373853,0.00038356,120]
[336683612,1725013847188,-500.0,0.00038356,120]
[336683613,1725013847198,-502.16776758,0.00038356,120]
[336683614,1725013847207,-500.0,0.00038356,120]
[336683615,1725013847216,-500.0,0.00038356,120]
[336683616,1725013847225,-261.45273816,0.00038356,120]
[336683617,1725013847234,-500.0,0.00038356,120]
[336683618,1725013847243,-361.599611,0.00038356,7]
[336683619,1725013847252,-361.599611,0.00038356,7]
[336683620,1725013847261,-500.0,0.00038356,120]
[336683621,1725013847270,-504.5131485,0.00038356,120]
[336683622,1725013847280,-500.0,0.00038356,120]
[336683623,1725013847289,-500.0,0.00038356,120]
[336683624,1725013847298,-361.599611,0.00038356,7]
[336683625,1725013847307,-361.599611,0.00038356,7]
[336683626,1725013847317,-500.0,0.00038356,120]
[336683627,1725013847326,-500.0,0.00038356,120]
[336683628,1725013847335,-151.0,0.00038356,7]
[336683629,1725013847344,-151.0,0.00038356,7]
[336683630,1725013847353,-296.88260019,0.00038356,120]
[336683631,1725013847362,-500.0,0.00038356,120]
[336683632,1725013847371,-151.0,0.00038356,7]
[336683633,1725013847381,-151.0,0.00038356,7]
[336683634,1725013847390,-500.0,0.00038356,120]
[336683635,1725013847399,-500.0,0.00038356,120]
[336683636,1725013847409,-500.0,0.00038356,120]
[336683637,1725013847418,-500.0,0.00038356,120]
[336683638,1725013847427,-3477.01,0.00038356,120]
[336683639,1725013847436,-151.0,0.00038356,7]
[336683640,1725013847446,-151.0,0.00038356,7]
[336683641,1725013847455,-500.0,0.00038356,80]
[336683642,1725013847464,-500.0,0.00038356,120]
[336683643,1725013847474,-500.0,0.00038356,120]
[336683644,1725013847483,-500.0,0.00038356,120]
[336683645,1725013847492,-500.0,0.00038356,120]
[336683646,1725013847502,-151.0,0.00038356,7]
[336683647,1725013847511,-500.0,0.00038356,120]
[336683648,1725013847521,-151.0,0.00038356,7]
[336683649,1725013847534,-500.0,0.00038356,120]
[336683650,1725013847544,-500.0,0.00038356,120]
[336683651,1725013847553,-314.17143342,0.00038356,120]
[336683652,1725013847562,-4732.477705,0.00038356,7]
[336683653,1725013847571,-4732.477705,0.00038356,7]
[336683654,1725013847580,-506.22440362,0.00038356,120]
[336683655,1725013847589,-4732.477705,0.00038356,7]
[336683656,1725013847598,-4732.477705,0.00038356,7]
[336683657,1725013847607,-500.0,0.00038356,120]
[336683658,1725013847616,-500.0,0.00038356,120]
[336683659,1725013847625,-500.0,0.00038356,120]
[336683660,1725013847634,-151.0,0.00038356,7]
[336683661,1725013847644,-501.58001797,0.00038356,120]
[336683662,1725013847653,-151.0,0.00038356,7]
[336683663,1725013847662,-489.13795514,0.00038356,120]
[336683664,1725013847671,-500.63866923,0.00038356,120]
[336683665,1725013847680,-501.31604962,0.00038356,120]
[336683666,1725013847691,-1229.12498,0.00038356,7]
[336683667,1725013847700,-1229.12498,0.00038356,7]
[336683668,1725013847709,-1229.12498,0.00038356,7]
[336683669,1725013847718,-1229.12498,0.00038356,7]
[336683670,1725013847727,-500.0,0.00038356,120]
[336683671,1725013847736,-500.0,0.00038356,120]
[336683672,1725013847745,-501.64300067,0.00038356,120]